bitfinex/quotes_BTCUSD_20240905
["timestamp","ask_amount","ask_price","bid_price","bid_amount"]
[1725561012512,0.352411,56752.0,56748.0,0.176216]
[1725561012757,0.176211,56750.0,56747.0,0.17622]
[1725561012970,0.003,56752.0,56747.0,0.352441]
[1725561013189,0.176209,56751.0,56747.0,0.17622]
[1725561013896,0.001,56750.0,56747.0,0.17622]
[1725561014145,0.001,56750.0,56745.0,0.1779]
[1725561014146,0.176222,56747.0,56745.0,0.1779]
[1725561014360,0.353423,56750.0,56743.0,0.176232]
[1725561014361,0.317624,56746.0,56743.0,0.176232]
[1725561014566,0.176217,56748.0,56744.0,0.176229]
[1725561014800,0.352418,56751.0,56746.0,0.3233]
[1725561015024,0.199197,56755.0,56749.0,0.352426]
[1725561015269,0.001,56752.0,56751.0,0.706524]
[1725561015739,0.023,56757.0,56752.0,0.352405]
[1725561016003,0.199183,56759.0,56753.0,0.352403]
[1725561016223,0.199183,56759.0,56755.0,0.176194]
[1725561016447,0.199183,56759.0,56756.0,0.176192]
[1725561016890,0.199184,56759.0,56756.0,0.176192]
[1725561017119,0.199184,56759.0,56755.0,0.176195]
[1725561017327,0.200184,56759.0,56756.0,0.176191]
[1725561017530,0.199184,56759.0,56755.0,0.176195]
[1725561017864,0.024,56759.0,56755.0,0.176195]
[1725561018086,0.177184,56759.0,56755.0,0.176195]
[1725561018882,0.177184,56759.0,56754.0,0.176197]
[1725561018883,0.176187,56758.0,56754.0,0.176197]
[1725561019100,0.176187,56758.0,56751.0,0.530316]
[1725561019101,0.176187,56758.0,56755.0,0.176195]
[1725561019315,0.17619,56757.0,56754.0,0.176198]
[1725561019988,0.17619,56757.0,56754.0,0.176197]
[1725561020220,0.17619,56757.0,56752.0,0.35241]
[1725561020446,0.17619,56757.0,56751.0,0.352412]
[1725561020447,0.317593,56756.0,56751.0,0.352412]
[1725561020682,0.317593,56756.0,56753.0,0.1762]
[1725561020903,0.317593,56756.0,56754.0,0.002]
[1725561021354,0.176195,56755.0,56752.0,0.176204]
[1725561021547,0.176195,56755.0,56752.0,0.178204]
[1725561021803,0.352396,56755.0,56751.0,0.002]
[1725561022035,0.176205,56752.0,56751.0,0.002]
[1725561022261,0.176205,56752.0,56749.0,0.176213]
[1725561022507,0.176202,56753.0,56750.0,0.176211]
[1725561022996,0.176202,56753.0,56749.0,0.176213]
[1725561023194,0.176202,56753.0,56750.0,0.176211]
[1725561023660,0.176194,56756.0,56753.0,0.1762]
[1725561023918,0.176194,56756.0,56742.0,0.00163]
[1725561023919,0.000815,56760.0,56757.0,0.352377]
[1725561024389,0.000815,56760.0,56759.0,0.176183]
[1725561024873,0.000815,56760.0,56757.0,0.176188]
[1725561024874,0.176996,56760.0,56757.0,0.176188]
[1725561025114,0.178996,56760.0,56757.0,0.176188]
[1725561025354,0.004815,56760.0,56758.0,0.176185]
[1725561025586,0.004815,56760.0,56756.0,0.352382]
[1725561025822,0.004815,56760.0,56759.0,0.176183]
[1725561026052,0.004815,56760.0,56759.0,0.1758]
[1725561026275,0.26840331,56763.0,56759.0,0.351983]
[1725561026505,0.199174,56762.0,56759.0,0.351983]
[1725561026989,0.002,56760.0,56759.0,0.351983]
[1725561027221,0.000816,56764.0,56763.0,0.176171]
[1725561027459,0.000816,56764.0,56761.0,0.176175]
[1725561027687,0.199985,56764.0,56761.0,0.176176]
[1725561027907,0.199984,56764.0,56761.0,0.176176]
[1725561028136,0.19964377,56764.0,56761.0,0.176176]
[1725561028362,0.02347577,56764.0,56759.0,0.1798]
[1725561028580,0.176175,56762.0,56759.0,0.351983]
[1725561028816,0.023,56761.0,56759.0,0.351983]
[1725561029698,0.023,56761.0,56759.0,0.1758]
[1725561030134,0.00147577,56764.0,56759.0,0.1758]
[1725561030358,0.00047577,56764.0,56762.0,0.176173]
[1725561030582,0.02347577,56764.0,56763.0,0.176171]
[1725561030799,0.00047577,56764.0,56763.0,0.176171]
[1725561031243,0.00047577,56764.0,56763.0,0.528513]
[1725561031462,0.00047577,56764.0,56763.0,1.071855]
[1725561031912,0.00147577,56764.0,56763.0,1.071855]
[1725561032852,0.00047577,56764.0,56763.0,1.071855]
[1725561033299,0.00147577,56764.0,56763.0,0.528513]
[1725561033557,0.00147577,56764.0,56763.0,0.005]
[1725561033789,0.00047577,56764.0,56762.0,0.176172]
[1725561034003,0.00147577,56764.0,56763.0,0.007]
[1725561034243,0.00247577,56764.0,56763.0,0.014]
[1725561034463,0.02547577,56764.0,56763.0,0.007]
[1725561034699,0.02547577,56764.0,56762.0,0.176172]
[1725561034700,0.02447577,56764.0,56762.0,0.176172]
[1725561034934,0.02447577,56764.0,56760.0,0.35236]
[1725561034935,0.00347577,56764.0,56763.0,0.540513]
[1725561035155,0.00347577,56764.0,56763.0,1.224155]
[1725561036301,0.00047577,56764.0,56763.0,1.212155]
[1725561036516,0.00147577,56764.0,56763.0,1.212155]
[1725561036779,0.00247577,56764.0,56763.0,1.212155]
[1725561036978,0.00147577,56764.0,56763.0,1.212155]
[1725561037227,0.00147577,56764.0,56763.0,1.060155]
[1725561037424,0.00347577,56764.0,56763.0,1.072155]
[1725561038323,0.00347577,56764.0,56763.0,0.1913]
[1725561038994,0.17964277,56764.0,56763.0,0.012]
[1725561039222,0.32474277,56764.0,56763.0,0.012]
[1725561039483,1.05241277,56764.0,56763.0,0.012]
[1725561042862,1.40474777,56764.0,56763.0,0.012]
[1725561043092,1.41926108,56764.0,56763.0,0.012]
[1725561043334,1.43769875,56764.0,56763.0,0.012]
[1725561043992,1.43669875,56764.0,56763.0,0.006]
[1725561044215,0.176195,56755.0,56754.0,0.1796]
[1725561045152,0.352359,56761.0,56755.0,0.1477]
[1725561045382,0.176184,56759.0,56757.0,0.1857]
[1725561045593,0.023,56760.0,56757.0,0.1857]
[1725561045807,0.176171,56763.0,56760.0,0.176179]
[1725561046015,0.02391344,56764.0,56762.0,0.1477]
[1725561046227,0.02391344,56764.0,56762.0,0.323872]
[1725561046444,0.01891344,56764.0,56762.0,0.323872]
[1725561048066,0.01891344,56764.0,56763.0,0.176171]
[1725561048556,0.01891344,56764.0,56762.0,0.325873]
[1725561048775,0.01891344,56764.0,56762.0,0.327873]
[1725561049004,0.01891344,56764.0,56762.0,0.1517]
[1725561049242,0.01891344,56764.0,56762.0,0.327872]
[1725561049466,0.01891344,56764.0,56762.0,0.325872]
[1725561049693,0.01891344,56764.0,56763.0,0.002]
[1725561050159,1.19548853,56764.0,56763.0,0.002]
[1725561050376,0.528568,56757.0,56756.0,0.1857]
[1725561051044,0.551568,56757.0,56756.0,0.1857]
[1725561052400,0.903947,56757.0,56756.0,0.1857]
[1725561052625,0.176199,56754.0,56753.0,0.00163]
[1725561052873,0.528779,56757.0,56753.0,0.00163]
[1725561052874,0.176196,56755.0,56753.0,0.00163]
[1725561053332,0.176193,56756.0,56753.0,0.177832]
[1725561053565,0.199191,56757.0,56753.0,0.177832]
[1725561053786,0.199191,56757.0,56756.0,0.002]
[1725561054240,0.176193,56756.0,56753.0,0.17783]
[1725561054482,0.19919,56757.0,56754.0,0.176198]
[1725561054925,0.023,56756.0,56754.0,0.176198]
[1725561054928,0.023,56756.0,56755.0,0.3131]
[1725561055148,0.199192,56756.0,56755.0,0.3131]
[1725561055367,0.023,56756.0,56755.0,0.3131]
[1725561056005,0.023,56757.0,56755.0,0.3131]
[1725561056225,0.023,56757.0,56756.0,0.002]
[1725561056440,0.023,56757.0,56756.0,0.003632]
[1725561056698,0.023,56757.0,56756.0,0.001632]
[1725561056928,0.199189,56757.0,56756.0,0.001632]
[1725561057606,0.023,56757.0,56756.0,0.003632]
[1725561058766,0.01843767,56757.0,56756.0,0.532209]
[1725561058996,0.01843767,56757.0,56756.0,0.534209]
[1725561059222,0.01843767,56757.0,56756.0,0.181824]
[1725561059448,0.01843767,56757.0,56756.0,0.534209]
[1725561060671,0.01843767,56757.0,56756.0,1.558279]
[1725561060899,0.01843767,56757.0,56756.0,1.205894]
[1725561062488,0.04143767,56757.0,56756.0,0.189332]
[1725561062711,0.551568,56757.0,56756.0,0.005632]
[1725561064743,0.199189,56757.0,56756.0,0.005632]
[1725561065001,0.00047577,56764.0,56757.0,0.3275]
[1725561065207,0.17618,56760.0,56757.0,0.679878]
[1725561065428,0.176177,56761.0,56758.0,0.176185]
[1725561065659,0.023,56760.0,56758.0,0.176185]
[1725561066110,0.00047577,56764.0,56758.0,0.18]
[1725561066406,0.00647577,56764.0,56763.0,1.203955]
[1725561066619,0.00647577,56764.0,56763.0,1.73180796]
[1725561067326,0.01247577,56764.0,56763.0,1.73180796]
[1725561067791,0.00647577,56764.0,56763.0,1.73180796]
[1725561068006,0.00147577,56764.0,56763.0,1.74280796]
[1725561068906,0.00147577,56764.0,56763.0,1.75280796]
[1725561069123,0.00247577,56764.0,56763.0,1.75280796]
[1725561072661,0.02091344,56764.0,56763.0,1.75280796]
[1725561081156,0.02091344,56764.0,56763.0,2.10514996]
[1725561084119,0.02091344,56764.0,56763.0,1.75280796]
[1725561090344,0.02091344,56764.0,56763.0,0.201]
[1725561090557,0.18321344,56764.0,56763.0,0.021]
[1725561090772,0.18321344,56764.0,56763.0,0.197171]
[1725561090773,0.04391344,56764.0,56763.0,0.197171]
[1725561091221,0.04391344,56764.0,56763.0,0.021]
[1725561091454,0.04391344,56764.0,56763.0,0.197171]
[1725561092551,0.22008044,56764.0,56763.0,0.021]
[1725561092784,1.1974411,56764.0,56763.0,0.021]
[1725561093000,1.3385411,56764.0,56763.0,0.022632]
[1725561093735,1.3375411,56764.0,56763.0,0.011632]
[1725561093947,1.6888761,56764.0,56763.0,0.001632]
[1725561094173,1.6888761,56764.0,56763.0,0.006632]
[1725561094822,1.6888761,56764.0,56763.0,0.011632]
[1725561095304,1.68840033,56764.0,56763.0,0.011632]
[1725561095518,1.26050437,56764.0,56763.0,0.011632]
[1725561097359,1.28350437,56764.0,56763.0,0.011632]
[1725561099949,1.63583937,56764.0,56763.0,0.011632]
[1725561100668,1.63594938,56764.0,56763.0,0.011632]
[1725561101620,0.00082,56765.0,56763.0,0.011632]
[1725561101837,0.00082,56765.0,56763.0,0.187802]
[1725561102269,0.176987,56765.0,56763.0,0.011632]
[1725561102510,0.176167,56764.0,56763.0,0.001632]
[1725561102963,0.176167,56764.0,56763.0,0.009632]
[1725561102964,0.551502,56764.0,56763.0,0.009632]
[1725561103412,0.551502,56764.0,56763.0,0.005632]
[1725561103853,1.399272,56764.0,56763.0,0.010632]
[1725561104070,1.399272,56764.0,56763.0,0.006632]
[1725561104524,1.399272,56764.0,56763.0,0.011632]
[1725561105669,1.400088,56764.0,56763.0,0.011632]
[1725561111085,1.41852567,56764.0,56763.0,0.011632]
[1725561112660,1.39552567,56764.0,56763.0,0.011632]
[1725561112936,1.25242567,56764.0,56763.0,0.186932]
[1725561113784,1.25242567,56764.0,56763.0,0.011632]
[1725561114237,1.84376067,56764.0,56763.0,0.011632]
[1725561114693,1.86676067,56764.0,56763.0,0.011632]
[1725561115142,1.86876067,56764.0,56763.0,0.011632]
[1725561115364,1.86676067,56764.0,56763.0,0.011632]
[1725561116474,1.87676067,56764.0,56763.0,0.011632]
[1725561117171,1.87876067,56764.0,56763.0,0.011632]
[1725561117619,2.23109567,56764.0,56763.0,0.011632]
[1725561120614,1.86676067,56764.0,56763.0,0.011632]
[1725561121050,1.86876067,56764.0,56763.0,0.011632]
[1725561124841,1.86676067,56764.0,56763.0,0.011632]
[1725561125315,1.86876067,56764.0,56763.0,0.011632]
[1725561127441,1.86876067,56764.0,56763.0,0.180932]
[1725561127442,1.02309067,56764.0,56763.0,0.180932]
[1725561127539,1.37542567,56764.0,56763.0,0.180932]
[1725561130267,1.02309067,56764.0,56763.0,0.180932]
[1725561130725,0.67075567,56764.0,56763.0,0.180932]
[1725561131462,1.02309067,56764.0,56763.0,0.180932]
[1725561131694,1.37542567,56764.0,56763.0,0.180932]
[1725561132156,1.02309067,56764.0,56763.0,0.180932]
[1725561133075,1.37542567,56764.0,56763.0,0.180932]
[1725561133311,1.02309067,56764.0,56763.0,0.180932]
[1725561134957,1.02309067,56764.0,56763.0,0.315232]
[1725561135191,0.67075567,56764.0,56763.0,0.315232]
[1725561135917,1.02309067,56764.0,56763.0,0.315232]
[1725561136152,0.67075567,56764.0,56763.0,0.180932]
[1725561136603,1.02309067,56764.0,56763.0,0.180932]
[1725561137052,0.14225367,56764.0,56763.0,0.180932]
[1725561137276,0.67075567,56764.0,56763.0,0.180932]
[1725561140024,1.37542567,56764.0,56763.0,0.180932]
[1725561140256,1.37542567,56764.0,56763.0,0.011632]
[1725561140724,0.880885,56761.0,56760.0,0.16642633]
[1725561140960,1.17668567,56761.0,56760.0,0.16642633]
[1725561141684,1.52903967,56761.0,56760.0,0.16642633]
[1725561142173,1.53003967,56761.0,56760.0,0.009]
[1725561142413,1.58289815,56761.0,56760.0,0.009]
[1725561143152,1.53003967,56761.0,56760.0,0.009]
[1725561143376,1.53003967,56761.0,56760.0,0.008]
[1725561143837,1.53703967,56761.0,56760.0,0.001]
[1725561144540,1.54503967,56761.0,56760.0,0.002]
[1725561144998,1.54503967,56761.0,56760.0,0.3022]
[1725561144999,0.016,56761.0,56760.0,0.3022]
[1725561145243,0.192177,56761.0,56760.0,0.3022]
[1725561146360,0.215177,56761.0,56760.0,0.3022]
[1725561148462,0.016,56761.0,56760.0,0.83074]
[1725561148676,0.016,56761.0,56760.0,1.1831]
[1725561151031,0.016,56761.0,56760.0,1.184732]
[1725561151268,0.016,56761.0,56760.0,1.537092]
[1725561152611,0.008,56761.0,56760.0,1.536092]
[1725561152869,0.01,56761.0,56760.0,1.536092]
[1725561153134,0.01,56761.0,56760.0,2.06396296]
[1725561153370,0.002,56761.0,56760.0,2.06296296]
[1725561153810,0.004,56761.0,56760.0,2.06296296]
[1725561154051,0.000816,56764.0,56763.0,1.585539]
[1725561154267,0.000816,56764.0,56763.0,2.06044996]
[1725561156836,0.002816,56764.0,56763.0,2.08644996]
[1725561157074,0.21772251,56780.0,56779.0,0.339621]
[1725561157531,0.24072251,56780.0,56779.0,0.1635]
[1725561158512,0.24072251,56780.0,56779.0,0.1675]
[1725561158941,0.023,56780.0,56779.0,0.1675]
[1725561159398,0.023,56780.0,56779.0,0.1705]
[1725561160367,0.023,56780.0,56779.0,0.698863]
[1725561160844,0.023,56780.0,56779.0,1.051105]
[1725561161085,0.023,56780.0,56779.0,0.698863]
[1725561162005,0.11843767,56781.0,56779.0,0.698863]
[1725561162006,0.01843767,56781.0,56780.0,1.19089]
[1725561162300,0.01843767,56781.0,56780.0,1.543126]
[1725561162464,0.0110981,56783.0,56782.0,1.232784]
[1725561162685,0.0110981,56783.0,56782.0,1.398784]
[1725561163678,0.0110981,56783.0,56782.0,0.694336]
[1725561163903,0.0110981,56783.0,56782.0,1.04656]
[1725561165280,0.0110981,56783.0,56782.0,1.05156]
[1725561166234,0.0110981,56783.0,56782.0,1.04656]
[1725561166476,0.0120981,56783.0,56782.0,1.05356]
[1725561167188,0.0130981,56783.0,56782.0,1.06056]
[1725561169063,0.0130981,56783.0,56782.0,2.36441963]
[1725561169544,0.0130981,56783.0,56782.0,2.35441963]
[1725561170064,0.0120981,56783.0,56782.0,2.34741963]
[1725561170310,0.0110981,56783.0,56782.0,2.34041963]
[1725561170548,0.0130981,56783.0,56782.0,2.35441963]
[1725561170767,0.0130981,56783.0,56782.0,2.34741963]
[1725561171000,0.0130981,56783.0,56782.0,2.35441963]
[1725561171451,0.0140981,56783.0,56782.0,2.36641963]
[1725561174099,0.0140981,56783.0,56782.0,1.21366]
[1725561175450,0.0149141,56783.0,56782.0,1.21366]
[1725561175947,0.0129141,56783.0,56782.0,1.19966]
[1725561176170,0.0119141,56783.0,56782.0,1.18766]
[1725561176626,0.0129141,56783.0,56782.0,1.20066]
[1725561177309,0.0129141,56783.0,56782.0,1.21366]
[1725561177547,0.0129141,56783.0,56782.0,0.192]
[1725561177774,0.0129141,56783.0,56782.0,0.026]
[1725561177775,0.81404177,56783.0,56782.0,0.026]
[1725561177991,1.54147777,56783.0,56782.0,0.026]
[1725561178697,1.18925977,56783.0,56782.0,0.013]
[1725561179206,1.54147777,56783.0,56782.0,0.013]
[1725561179450,0.880575,56781.0,56780.0,0.001632]
[1725561179670,1.255805,56781.0,56780.0,0.001632]
[1725561180373,1.409005,56781.0,56780.0,0.001632]
[1725561180600,1.861235,56781.0,56780.0,0.001632]
[1725561181306,2.213465,56781.0,56780.0,0.001632]
[1725561181526,2.219465,56781.0,56780.0,0.002632]
[1725561181971,2.225465,56781.0,56780.0,0.002632]
[1725561182218,2.219465,56781.0,56780.0,0.002632]
[1725561182457,1.867235,56781.0,56780.0,0.002632]
[1725561183186,1.861235,56781.0,56780.0,0.001632]
[1725561183435,1.881235,56781.0,56780.0,0.001632]
[1725561183673,1.881235,56781.0,56760.0,0.52813715]
[1725561183674,0.176177,56761.0,56760.0,0.52813715]
[1725561183947,0.892885,56761.0,56760.0,0.52813715]
[1725561184199,0.892885,56761.0,56760.0,0.001632]
[1725561184200,1.61803967,56761.0,56760.0,0.001632]
[1725561184435,1.37284997,56761.0,56760.0,0.001632]
[1725561185146,1.41428764,56761.0,56760.0,0.001632]
[1725561185349,1.42028764,56761.0,56760.0,0.002632]
[1725561185645,1.41828764,56761.0,56760.0,0.001632]
[1725561185860,1.41828764,56761.0,56760.0,0.172632]
[1725561185861,0.30061467,56761.0,56760.0,0.172632]
[1725561186084,0.20061467,56761.0,56760.0,0.172632]
[1725561186287,0.02443767,56761.0,56760.0,0.172632]
[1725561186505,0.03843767,56761.0,56760.0,0.172632]
[1725561186948,0.03843767,56761.0,56760.0,1.054532]
[1725561187172,0.01843767,56761.0,56760.0,1.053532]
[1725561187395,0.01843767,56761.0,56760.0,1.405892]
[1725561187396,0.02843767,56761.0,56760.0,1.405892]
[1725561187612,0.02,56761.0,56760.0,1.405892]
[1725561187830,0.02,56761.0,56760.0,1.538792]
[1725561187831,0.01,56761.0,56760.0,1.538792]
[1725561188274,0.01843767,56772.0,56771.0,0.347146]
[1725561188469,0.01843767,56772.0,56771.0,0.699438]
[1725561189623,0.01843767,56772.0,56771.0,1.18463]
[1725561189836,0.01843767,56772.0,56771.0,1.536922]
[1725561190952,0.01943767,56772.0,56771.0,1.19063]
[1725561191378,0.02043767,56772.0,56771.0,1.19063]
[1725561194273,0.02043767,56772.0,56771.0,0.486046]
[1725561194520,0.02043767,56772.0,56771.0,1.99123363]
[1725561194958,0.002,56772.0,56771.0,1.99123363]
[1725561195636,0.001,56772.0,56771.0,1.99123363]
[1725561196074,0.002,56772.0,56771.0,1.99423363]
[1725561196296,0.001,56772.0,56771.0,1.71543296]
[1725561196513,0.000816,56781.0,56780.0,0.176118]
[1725561196757,0.000816,56781.0,56780.0,0.347218]
[1725561197272,0.145616,56781.0,56780.0,0.176118]
[1725561197494,0.528429,56772.0,56771.0,0.014]
[1725561197713,1.15351567,56772.0,56771.0,0.014]
[1725561197984,0.528531,56761.0,56760.0,0.001632]
[1725561198199,0.880885,56761.0,56760.0,0.001632]
[1725561198421,1.401039,56761.0,56760.0,0.001632]
[1725561198639,1.148685,56761.0,56760.0,0.001632]
[1725561199080,0.796331,56761.0,56760.0,0.001632]
[1725561199535,1.148685,56761.0,56760.0,0.001632]
[1725561199762,1.158685,56761.0,56760.0,0.002632]
[1725561200228,1.157685,56761.0,56760.0,0.002632]
[1725561200444,1.165685,56761.0,56760.0,0.003632]
[1725561200728,1.156685,56761.0,56760.0,0.002632]
[1725561201201,1.156685,56761.0,56760.0,0.003632]
[1725561201202,1.166685,56761.0,56760.0,0.003632]
[1725561201671,1.156685,56761.0,56760.0,0.002632]
[1725561201928,1.164685,56761.0,56760.0,0.003632]
[1725561202617,1.517039,56761.0,56760.0,0.003632]
[1725561203070,1.519039,56761.0,56760.0,0.003632]
[1725561203307,0.990508,56761.0,56760.0,0.003632]
[1725561203525,1.519039,56761.0,56760.0,0.003632]
[1725561204723,1.249239,56761.0,56760.0,0.003632]
[1725561204944,0.896885,56761.0,56760.0,0.003632]
[1725561206505,0.896885,56761.0,56760.0,0.183832]
[1725561206722,1.019885,56761.0,56760.0,0.183832]
[1725561207154,1.372239,56761.0,56760.0,0.183832]
[1725561207780,1.019885,56761.0,56760.0,0.183832]
[1725561208446,1.372239,56761.0,56760.0,0.183832]
[1725561209199,1.442873,56761.0,56760.0,0.183832]
[1725561209645,1.090519,56761.0,56760.0,0.183832]
[1725561210053,1.442873,56761.0,56760.0,0.183832]
[1725561210461,1.46131067,56761.0,56760.0,0.183832]
[1725561210666,1.46131067,56761.0,56760.0,0.003632]
[1725561213392,1.10895667,56761.0,56760.0,0.003632]
[1725561213602,1.08595667,56761.0,56760.0,0.003632]
[1725561216095,1.43831067,56761.0,56760.0,0.003632]
[1725561216307,1.46131067,56761.0,56760.0,0.003632]
[1725561218284,1.50251067,56761.0,56760.0,0.003632]
[1725561218943,1.46131067,56761.0,56760.0,0.003632]
[1725561219173,1.10895667,56761.0,56760.0,0.003632]
[1725561219406,1.08595667,56761.0,56760.0,0.171332]
[1725561219668,1.08595667,56761.0,56760.0,0.314832]
[1725561221916,1.08677267,56761.0,56760.0,0.314832]
[1725561223979,1.08677267,56761.0,56760.0,0.171332]
[1725561226647,1.43912667,56761.0,56760.0,0.171332]
[1725561226861,1.08677267,56761.0,56760.0,0.171332]
[1725561227565,1.43912667,56761.0,56760.0,0.003632]
[1725561227814,1.77608148,56761.0,56760.0,0.003632]
[1725561228047,1.42572748,56761.0,56760.0,0.003632]
[1725561228262,1.77608148,56761.0,56760.0,0.003632]
[1725561228477,2.05088215,56761.0,56760.0,0.003632]
[1725561228735,2.05088215,56761.0,56753.0,0.00163]
[1725561228736,1.245393,56754.0,56753.0,0.00163]
[1725561228969,1.97059167,56754.0,56753.0,0.00163]
[1725561229206,1.99159167,56754.0,56753.0,0.00163]
[1725561229432,2.01002934,56754.0,56753.0,0.00163]
[1725561229904,2.00002934,56754.0,56753.0,0.00163]
[1725561230138,2.01202934,56754.0,56753.0,0.00263]
[1725561230570,2.00002934,56754.0,56753.0,0.00163]
[1725561230791,2.02502934,56754.0,56753.0,0.00263]
[1725561231009,2.02702934,56754.0,56753.0,0.00263]
[1725561231274,2.01402934,56754.0,56753.0,0.00263]
[1725561231504,2.03002934,56754.0,56753.0,0.00263]
[1725561231721,2.05440968,56754.0,56753.0,0.00263]
[1725561232817,1.233631,56743.0,56742.0,0.18193]
[1725561233047,1.52943167,56743.0,56742.0,0.18193]
[1725561233494,1.15396567,56743.0,56742.0,0.18193]
[1725561234142,0.85495314,56743.0,56742.0,0.18193]
[1725561234356,0.98273267,56743.0,56742.0,0.18193]
[1725561234574,1.15896567,56743.0,56742.0,0.18193]
[1725561235468,1.15896567,56743.0,56742.0,0.31683]
[1725561235469,0.45403367,56743.0,56742.0,0.31683]
[1725561236131,0.005,56743.0,56742.0,0.845538]
[1725561237088,0.44901867,56748.0,56745.0,0.1747]
[1725561238215,0.45301867,56748.0,56745.0,0.1747]
[1725561238432,0.176223,56746.0,56745.0,0.1747]
[1725561238647,0.352441,56747.0,56745.0,0.1747]
[1725561238902,0.176223,56746.0,56745.0,0.1747]
[1725561239106,0.52867,56746.0,56745.0,0.1747]
[1725561239541,0.55167,56746.0,56745.0,0.1747]
[1725561239760,0.974769,56746.0,56745.0,0.1747]
[1725561239974,0.976769,56746.0,56745.0,0.1747]
[1725561240199,0.072652,56746.0,56745.0,0.1747]
[1725561240434,0.072652,56746.0,56745.0,1.543185]
[1725561240435,0.002,56746.0,56745.0,1.543185]
[1725561240672,0.002,56746.0,56745.0,1.190732]
[1725561240908,0.005,56746.0,56745.0,1.190732]
[1725561241338,0.018438,56750.0,56749.0,0.528643]
[1725561241581,0.018438,56750.0,56749.0,0.840543]
[1725561242934,0.018438,56750.0,56749.0,1.192972]
[1725561243183,0.018438,56750.0,56749.0,0.840543]
[1725561243402,0.023438,56750.0,56749.0,0.841543]
[1725561243631,0.027438,56750.0,56749.0,0.841543]
[1725561244289,0.027438,56750.0,56749.0,1.193972]
[1725561244525,0.82887167,56750.0,56749.0,0.1731]
[1725561244745,1.25709367,56750.0,56749.0,0.001]
[1725561244944,1.7967333,56750.0,56749.0,0.001]
[1725561245433,1.71751567,56750.0,56749.0,0.001]
[1725561245668,1.77033253,56750.0,56749.0,0.001]
[1725561245871,1.70953253,56750.0,56749.0,0.001]
[1725561246078,1.67060642,56750.0,56749.0,0.001]
[1725561246791,1.65671567,56750.0,56749.0,0.001]
[1725561246986,1.65753267,56750.0,56749.0,0.001]
[1725561247411,1.65753267,56750.0,56749.0,0.1756]
[1725561247825,1.30511067,56750.0,56749.0,0.1756]
[1725561248088,0.95268867,56750.0,56749.0,0.1756]
[1725561248277,1.30511067,56750.0,56749.0,0.1756]
[1725561248484,0.95268867,56750.0,56749.0,0.1756]
[1725561248690,1.30511067,56750.0,56749.0,0.1756]
[1725561250351,1.30511067,56750.0,56749.0,0.001]
[1725561250820,1.65753267,56750.0,56749.0,0.001]
[1725561252839,1.66753267,56750.0,56749.0,0.001]
[1725561253296,1.72034953,56750.0,56749.0,0.001]
[1725561253513,1.66753267,56750.0,56749.0,0.001]
[1725561253727,1.72034953,56750.0,56749.0,0.001]
[1725561254155,1.72032836,56750.0,56749.0,0.001]
[1725561254591,1.66753267,56750.0,56749.0,0.001]
[1725561255245,1.65753267,56750.0,56749.0,0.001]
[1725561255457,1.65753267,56750.0,56749.0,0.1779]
[1725561255948,1.30511067,56750.0,56749.0,0.1779]
[1725561256161,1.65753267,56750.0,56749.0,0.1779]
[1725561257285,1.30511067,56750.0,56749.0,0.1779]
[1725561257500,1.28211067,56750.0,56749.0,0.3187]
[1725561257703,0.82968867,56750.0,56749.0,0.3187]
[1725561258946,0.85268867,56750.0,56749.0,0.3187]
[1725561259820,1.20511067,56750.0,56749.0,0.3187]
[1725561260031,0.85268867,56750.0,56749.0,0.3187]
[1725561260655,0.56025149,56750.0,56749.0,0.3187]
[1725561260920,0.63089649,56750.0,56749.0,0.3187]
[1725561261128,0.27847449,56750.0,56749.0,0.3187]
[1725561261330,0.20782949,56750.0,56749.0,0.3187]
[1725561261763,0.000817,56750.0,56749.0,1.552201]
[1725561262006,0.000817,56750.0,56749.0,1.199772]
[1725561263530,0.001817,56750.0,56749.0,1.203772]
[1725561263765,0.001817,56750.0,56749.0,1.210772]
[1725561263987,0.002817,56750.0,56749.0,1.210772]
[1725561264647,0.001817,56750.0,56749.0,1.205772]
[1725561265132,0.002817,56750.0,56749.0,1.213772]
[1725561269500,0.002817,56750.0,56749.0,0.3327]
[1725561269736,0.002817,56750.0,56749.0,0.508914]
[1725561270607,0.002817,56750.0,56749.0,0.3327]
[1725561271048,0.53145,56750.0,56749.0,0.3327]
[1725561271512,0.179028,56750.0,56749.0,0.3327]
[1725561271760,0.002817,56750.0,56749.0,0.3327]
[1725561271982,0.002817,56750.0,56749.0,0.508914]
[1725561272207,0.002817,56750.0,56749.0,0.861343]
[1725561272445,0.002817,56750.0,56749.0,0.508914]
[1725561272852,0.002817,56750.0,56749.0,0.3327]
[1725561273574,0.002817,56750.0,56749.0,0.861343]
[1725561274106,0.002817,56750.0,56749.0,1.213772]
[1725561274810,0.002817,56750.0,56749.0,1.566201]
[1725561275297,0.002817,56750.0,56749.0,2.09414096]
[1725561276493,0.002817,56750.0,56749.0,1.566201]
[1725561282138,0.002817,56750.0,56749.0,1.567833]
[1725561285363,0.002817,56750.0,56749.0,1.74334396]
[1725561285608,0.002817,56750.0,56749.0,1.74534396]
[1725561285850,0.000816,56761.0,56760.0,0.82914]
[1725561286099,0.000816,56761.0,56760.0,1.53386]
[1725561286351,0.000816,56761.0,56760.0,2.06173096]
[1725561288229,0.001816,56761.0,56760.0,2.07173096]
[1725561288977,0.002816,56761.0,56760.0,2.08073096]
[1725561297164,0.002816,56761.0,56760.0,2.08273096]
[1725561298698,0.002816,56761.0,56760.0,2.08073096]
[1725561299857,0.002816,56761.0,56760.0,1.55286]
[1725561301658,0.352278,56774.0,56765.0,0.352326]
[1725561301886,0.352286,56772.0,56765.0,0.352326]
[1725561302098,0.17615,56770.0,56767.0,0.176157]
[1725561303399,0.44894667,56771.0,56768.0,0.176154]